lending/lending_fUSD_20240622
["ID","MTS","AMOUNT","RATE_DAILY","PERIOD"]
[330125585,1719029492115,-2308.34,0.00019452,2]
[330125586,1719029492125,-2090.46,0.00019452,2]
[330125587,1719029492134,-688.05,0.00019452,2]
[330125588,1719029492143,-596.22,0.00019452,2]
[330125589,1719029492153,-500.0,0.00019452,2]
[330125590,1719029492164,-944.79,0.00019452,2]
[330125591,1719029492173,-500.0,0.00019452,2]
[330125592,1719029492182,-500.0,0.00019452,2]
[330125593,1719029492192,-7152.31,0.00019452,2]
[330125594,1719029492203,-500.0,0.00019452,2]
[330125595,1719029492213,-665.12,0.00019452,2]
[330125596,1719029492223,-500.0,0.00019452,2]
[330125597,1719029492233,-955.17,0.00019452,2]
[330125598,1719029492245,-500.0,0.00019452,2]
[330125599,1719029492256,-30017.57,0.00019452,2]
[330125600,1719029492267,-567.16581408,0.00019452,2]
[330125601,1719029492279,-8494.36,0.00019452,2]
[330125602,1719029492289,-574.58888336,0.00019452,2]
[330125603,1719029492299,-500.0,0.00019452,2]
[330125604,1719029492309,-1102.94,0.00019452,2]
[330125605,1719029492319,-574.34,0.00019452,2]
[330125606,1719029492328,-500.0,0.00019452,2]
[330125607,1719029492424,-500.0,0.00019452,2]
[330125608,1719029492433,-573.08,0.00019452,2]
[330125609,1719029492444,-1893.07,0.00019452,2]
[330125610,1719029492453,-503.45,0.00019452,2]
[330125611,1719029492463,-5140.11,0.00019452,2]
[330125612,1719029492474,-584.96,0.00019452,2]
[330125613,1719029492484,-500.0,0.00019452,2]
[330125614,1719029492492,-500.0,0.00019452,2]
[330125615,1719029492502,-1046.27,0.00019452,2]
[330125616,1719029492511,-500.0,0.00019452,2]
[330125617,1719029492520,-500.0,0.00019452,2]
[330125618,1719029492529,-500.0,0.00019452,2]
[330125619,1719029492538,-500.0,0.00019452,2]
[330125620,1719029492547,-843.24,0.00019452,2]
[330125621,1719029492556,-500.0,0.00019452,2]
[330125622,1719029492566,-500.0,0.00019452,2]
[330125623,1719029492575,-676.7,0.00019452,2]
[330125624,1719029492583,-583.73,0.00019452,2]
[330125625,1719029492593,-520.95628131,0.00019452,2]
[330125626,1719029492602,-1220.48,0.00019452,2]
[330125627,1719029492611,-2257.37,0.00019452,2]
[330125628,1719029492620,-500.0,0.00019452,2]
[330125629,1719029492629,-500.0,0.00019452,2]
[330125630,1719029492638,-500.0,0.00019452,2]
[330125631,1719029492647,-500.0,0.00019452,2]
[330125632,1719029492656,-500.0,0.00019452,2]
[330125633,1719029492666,-500.0,0.00019452,2]
[330125634,1719029492675,-4933.08,0.00019452,2]
[330125635,1719029492684,-500.0,0.00019452,2]
[330125636,1719029492693,-500.0,0.00019452,2]
[330125637,1719029492702,-500.0,0.00019452,2]
[330125638,1719029492711,-2452.47,0.00019452,2]
[330125639,1719029492720,-2374.57,0.00019452,2]
[330125640,1719029492729,-914.01,0.00019452,2]
[330125641,1719029492738,-500.0,0.00019452,2]
[330125642,1719029492747,-522.12,0.00019452,2]
[330125643,1719029492756,-500.0,0.00019452,2]
[330125644,1719029492766,-500.0,0.00019452,2]
[330125645,1719029492775,-500.0,0.00019452,2]
[330125646,1719029492784,-500.0,0.00019452,2]
[330125647,1719029492794,-500.0,0.00019452,2]
[330125648,1719029492804,-500.0,0.00019452,2]
[330125649,1719029492814,-1855.06,0.00019452,2]
[330125650,1719029492823,-500.0,0.00019452,2]
[330125651,1719029492832,-500.0,0.00019452,2]
[330125652,1719029492843,-500.0,0.00019452,2]
[330125653,1719029492853,-500.0,0.00019452,2]
[330125654,1719029492864,-652.85,0.00019452,2]
[330125655,1719029492876,-500.0,0.00019452,2]
[330125656,1719029492889,-8465.3,0.00019452,2]
[330125657,1719029492899,-662.09,0.00019452,2]
[330125658,1719029492909,-6526.35,0.00019452,2]
[330125659,1719029492920,-500.0,0.00019452,2]
[330125660,1719029492932,-500.0,0.00019452,2]
[330125661,1719029492942,-2326.67,0.00019452,2]
[330125662,1719029492952,-500.0,0.00019452,2]
[330125663,1719029492963,-966.07,0.00019452,2]
[330125664,1719029492973,-4319.97,0.00019452,2]
[330125665,1719029492984,-500.0,0.00019452,2]
[330125666,1719029492993,-500.0,0.00019452,2]
[330125667,1719029493002,-1131.16,0.00019452,2]
[330125668,1719029493012,-500.0,0.00019452,2]
[330125669,1719029493021,-3087.23,0.00019452,2]
[330125670,1719029493033,-500.0,0.00019452,2]
[330125671,1719029493043,-500.0,0.00019452,2]
[330125672,1719029493052,-313.86,0.00019452,2]
[330125673,1719029493062,-4110.59,0.00019452,2]
[330125674,1719029493073,-500.0,0.00019452,2]
[330125675,1719029493082,-556.66418038,0.00019452,2]
[330125676,1719029493092,-732.01,0.00019452,2]
[330125677,1719029493102,-9870.7,0.00019452,2]
[330125678,1719029493112,-500.0,0.00019452,2]
[330125679,1719029493122,-925.17,0.00019452,2]
[330125680,1719029493132,-500.0,0.00019452,2]
[330125681,1719029493144,-514.9,0.00019452,2]
[330125682,1719029493153,-674.93,0.00019452,2]
[330125683,1719029493164,-500.0,0.00019452,2]
[330125684,1719029493175,-500.0,0.00019452,2]
[330125685,1719029493186,-500.0,0.00019452,2]
[330125686,1719029493195,-3851.34,0.00019452,2]
[330125687,1719029493205,-1150.65,0.00019452,2]
[330125688,1719029493214,-1381.02,0.00019452,2]
[330125689,1719029493224,-800.41,0.00019452,2]
[330125690,1719029493236,-1977.8,0.00019452,2]
[330125691,1719029493246,-9267.92,0.00019452,2]
[330125692,1719029493256,-500.0,0.00019452,2]
[330125693,1719029493265,-500.0,0.00019452,2]
[330125694,1719029493275,-500.0,0.00019452,2]
[330125695,1719029493285,-925.19,0.00019452,2]
[330125696,1719029493295,-500.0,0.00019452,2]
[330125697,1719029493304,-500.0,0.00019452,2]
[330125698,1719029493313,-500.0,0.00019452,2]
[330125699,1719029493322,-194.82102167,0.00019452,2]
[330125700,1719029493333,-500.0,0.00019452,2]
[330125701,1719029493342,-3343.38,0.00019452,2]
[330125702,1719029493351,-427.78901418,0.00019452,2]
[330125703,1719029493360,-22119.48,0.00019452,2]
[330125704,1719029493368,-500.0,0.00019452,2]
[330125705,1719029493377,-500.0,0.00019452,2]
[330125706,1719029493386,-504.97,0.00019452,2]
[330125707,1719029493395,-804.99,0.00019452,2]
[330125708,1719029493404,-500.0,0.00019452,2]
[330125709,1719029493413,-671.46,0.00019452,2]
[330125710,1719029493422,-974.87,0.00019452,2]
[330125711,1719029493431,-793.66,0.00019452,2]
[330125712,1719029493440,-500.0,0.00019452,2]
[330125713,1719029493450,-500.0,0.00019452,2]
[330125714,1719029493459,-500.0,0.00019452,2]
[330125715,1719029493468,-1537.47,0.00019452,2]
[330125716,1719029493477,-744.22,0.00019452,2]
[330125717,1719029493486,-5649.32,0.00019452,2]
[330125718,1719029493496,-625.09,0.00019452,2]
[330125719,1719029493506,-4184.3,0.00019452,2]
[330125720,1719029493515,-500.0,0.00019452,2]
[330125721,1719029493525,-1205.42,0.00019452,2]
[330125722,1719029493534,-1206.01,0.00019452,2]
[330125723,1719029493544,-500.0,0.00019452,2]
[330125724,1719029493553,-500.0,0.00019452,2]
[330125725,1719029493562,-500.0,0.00019452,2]
[330125726,1719029493572,-783.67,0.00019452,2]
[330125727,1719029493581,-535.87,0.00019452,2]
[330125728,1719029493591,-663.27,0.00019452,2]
[330125729,1719029493600,-542.26,0.00019452,2]
[330125730,1719029493609,-500.0,0.00019452,2]
[330125731,1719029493618,-700.08,0.00019452,2]
[330125732,1719029493627,-500.0,0.00019452,2]
[330125733,1719029493636,-2308.75,0.00019452,2]
[330125734,1719029493645,-8242.74,0.00019452,2]
[330125735,1719029493654,-822.65,0.00019452,2]
[330125736,1719029493663,-500.0,0.00019452,2]
[330125737,1719029493672,-500.0,0.00019452,2]
[330125738,1719029493681,-1883.61,0.00019452,2]
[330125739,1719029493690,-993.9,0.00019452,2]
[330125740,1719029493700,-3366.15,0.00019452,2]
[330125741,1719029493709,-500.0,0.00019452,2]
[330125742,1719029493718,-500.0,0.00019452,2]
[330125743,1719029493727,-500.0,0.00019452,2]
[330125744,1719029493737,-500.0,0.00019452,2]
[330125745,1719029493748,-17752.55,0.00019452,2]
[330125746,1719029493759,-500.0,0.00019452,2]
[330125747,1719029493768,-1324.8,0.00019452,2]
[330125748,1719029493778,-500.0,0.00019452,2]
[330125749,1719029493789,-1344.71,0.00019452,2]
[330125750,1719029493801,-500.0,0.00019452,2]
[330125751,1719029493810,-500.0,0.00019452,2]
[330125752,1719029493820,-843.65,0.00019452,2]
[330125753,1719029493829,-1140.74,0.00019452,2]
[330125754,1719029493838,-709.39,0.00019452,2]
[330125755,1719029493848,-500.0,0.00019452,2]
[330125756,1719029493857,-758.95,0.00019452,2]
[330125757,1719029493867,-500.0,0.00019452,2]
[330125758,1719029493878,-2201.45,0.00019452,2]
[330125759,1719029493891,-500.0,0.00019452,2]
[330125760,1719029493903,-917.49,0.00019452,2]
[330125761,1719029493911,-500.0,0.00019452,2]
[330125762,1719029493920,-3047.73,0.00019452,2]
[330125763,1719029493930,-517.09,0.00019452,2]
[330125764,1719029493939,-514.9,0.00019452,2]
[330125765,1719029493947,-500.0,0.00019452,2]
[330125766,1719029493957,-3709.29,0.00019452,2]
[330125767,1719029493967,-3984.66,0.00019452,2]
[330125768,1719029493978,-500.0,0.00019452,2]
[330125769,1719029493990,-500.0,0.00019452,2]
[330125770,1719029494000,-3817.97,0.00019452,2]
[330125771,1719029494009,-500.0,0.00019452,2]
[330125772,1719029494019,-500.0,0.00019452,2]
[330125773,1719029494029,-500.0,0.00019452,2]
[330125774,1719029494039,-598.06254335,0.00019452,2]
[330125775,1719029494049,-500.0,0.00019452,2]
[330125776,1719029494059,-1278.74,0.00019452,2]
[330125777,1719029494070,-500.0,0.00019452,2]
[330125778,1719029494079,-566.03,0.00019452,2]
[330125779,1719029494088,-1187.66,0.00019452,2]
[330125780,1719029494099,-7830.86,0.00019452,2]
[330125781,1719029494109,-500.0,0.00019452,2]
[330125782,1719029494120,-500.0,0.00019452,2]
[330125783,1719029494130,-1333.18,0.00019452,2]
[330125784,1719029494139,-500.0,0.00019452,2]
[330125785,1719029494150,-500.0,0.00019452,2]
[330125786,1719029494161,-513.36,0.00019452,2]
[330125787,1719029494171,-521.04,0.00019452,2]
[330125788,1719029494182,-786.02,0.00019452,2]
[330125789,1719029494193,-654.36,0.00019452,2]
[330125790,1719029494202,-1237.8,0.00019452,2]
[330125791,1719029494211,-500.0,0.00019452,2]
[330125792,1719029494220,-2391.59,0.00019452,2]
[330125793,1719029494230,-500.0,0.00019452,2]
[330125794,1719029494240,-500.0,0.00019452,2]
[330125795,1719029494251,-1871.94,0.00019452,2]
[330125796,1719029494259,-29907.95,0.00019452,2]
[330125797,1719029494270,-514.57325479,0.00019452,2]
[330125798,1719029494279,-3600.9,0.00019452,2]
[330125799,1719029494289,-1834.84,0.00019452,2]
[330125800,1719029494297,-500.0,0.00019452,2]
[330125801,1719029494307,-259.41664652,0.00019452,2]
[330125802,1719029494316,-640.93,0.00019452,2]
[330125803,1719029494326,-1067.46,0.00019452,2]
[330125804,1719029494335,-500.0,0.00019452,2]
[330125805,1719029494345,-3919.91,0.00019452,2]
[330125806,1719029494354,-541.7,0.00019452,2]
[330125807,1719029494364,-2704.91,0.00019452,2]
[330125808,1719029494373,-1546.65,0.00019452,2]
[330125809,1719029494383,-500.0,0.00019452,2]
[330125810,1719029494394,-500.47013175,0.00019452,2]
[330125811,1719029494404,-3633.45,0.00019452,2]
[330125812,1719029494414,-500.0,0.00019452,2]
[330125813,1719029494423,-852.68,0.00019479,2]
[330125814,1719029494433,-852.68,0.00019479,2]
[330125815,1719029494443,-418.32,0.00019479,2]
[330125816,1719029494452,-852.68,0.00019479,2]
[330125817,1719029494462,-874.22727663,0.00019481,3]
[330125818,1719029494472,-874.22727663,0.00019481,3]
[330125819,1719029494481,-160.0,0.0001949,2]
[330125820,1719029494490,-5285.3274286,0.000195,2]
[330125821,1719029494500,-418.32,0.00019507,2]
[330125822,1719029494510,-913.75,0.0001956,2]
[330125823,1719029494520,-1540.34768269,0.00019626,2]
[330125824,1719029494529,-500.0,0.00019726,2]
[330125825,1719029494538,-500.0,0.00019726,2]
[330125826,1719029494547,-500.0,0.00019726,2]
[330125827,1719029494557,-500.0,0.00019726,2]
[330125828,1719029494566,-500.0,0.00019726,2]
[330125829,1719029494576,-501.20366122,0.00019726,2]
[330125830,1719029494585,-619.02417792,0.00019726,2]
[330125831,1719029494595,-500.0,0.00019726,2]
[330125832,1719029494605,-500.0,0.00019726,2]
[330125833,1719029494614,-500.0,0.00019726,2]
[330125834,1719029494623,-500.0,0.00019726,2]
[330125835,1719029494634,-500.0,0.00019726,2]
[330125836,1719029494643,-500.0,0.00019726,2]
[330125837,1719029494652,-500.0,0.00019726,2]
[330125838,1719029494661,-500.0,0.00019726,2]
[330125839,1719029494671,-500.0,0.00019726,2]
[330125840,1719029494681,-500.0,0.00019726,2]
[330125841,1719029494690,-500.0,0.00019726,2]
[330125842,1719029494700,-500.0,0.00019726,2]
[330125843,1719029494710,-500.0,0.00019726,2]
[330125844,1719029494719,-500.0,0.00019726,2]
[330125845,1719029494730,-500.0,0.00019726,2]
[330125846,1719029494740,-500.0,0.00019726,2]
[330125847,1719029494749,-566.28392516,0.00019726,2]
[330125848,1719029494759,-500.0,0.00019726,2]
[330125849,1719029494768,-500.0,0.00019726,2]
[330125850,1719029494778,-512.79802595,0.00019726,2]
[330125851,1719029494787,-500.0,0.00019726,2]
[330125852,1719029494796,-500.0,0.00019726,2]
[330125853,1719029494805,-500.0,0.00019726,2]
[330125854,1719029494815,-500.0,0.00019726,2]
[330125855,1719029494824,-500.0,0.00019726,2]
[330125856,1719029494834,-500.0,0.00019726,2]
[330125857,1719029494843,-500.0,0.00019726,2]
[330125858,1719029494852,-500.0,0.00019726,2]
[330125859,1719029494862,-500.0,0.00019726,2]
[330125860,1719029494871,-524.42050057,0.00019726,2]
[330125861,1719029494881,-500.0,0.00019726,2]
[330125862,1719029494895,-326.83735232,0.00019726,2]
[330125863,1719029494905,-500.0,0.00019726,2]
[330125864,1719029494915,-370.74190035,0.00019726,2]
[330125865,1719029494924,-500.0,0.00019726,2]
[330125866,1719029494935,-531.65828314,0.00019726,2]
[330125867,1719029494944,-500.0,0.00019726,2]
[330125868,1719029494954,-500.0,0.00019726,2]
[330125869,1719029494963,-1377.78,0.00019726,2]
[330125870,1719029494975,-500.0,0.00019726,2]
[330125871,1719029494985,-500.0,0.00019726,2]
[330125872,1719029494995,-500.0,0.00019726,2]
[330125873,1719029495004,-500.0,0.00019726,2]
[330125874,1719029495014,-500.0,0.00019726,2]
[330125875,1719029495023,-667.34,0.00019726,2]
[330125876,1719029495033,-500.0,0.00019726,2]
[330125877,1719029495042,-500.0,0.00019726,2]
[330125878,1719029495052,-500.0,0.00019726,2]
[330125879,1719029495061,-586.73,0.00019726,2]
[330125880,1719029495070,-500.0,0.00019726,2]
[330125881,1719029495080,-500.0,0.00019726,2]
[330125882,1719029495089,-644.8259073,0.00019726,2]
[330125883,1719029495098,-500.0,0.00019726,2]
[330125884,1719029495108,-1243.46,0.00019726,2]
[330125885,1719029495117,-500.0,0.00019726,2]
[330125886,1719029495126,-500.0,0.00019726,2]
[330125887,1719029495138,-508.32,0.00019726,2]
[330125888,1719029495149,-500.0,0.00019726,2]
[330125889,1719029495160,-542.26,0.00019726,2]
[330125890,1719029495171,-545.65,0.00019726,2]
[330125891,1719029495181,-500.0,0.00019726,2]
[330125892,1719029495190,-500.0,0.00019726,2]
[330125893,1719029495200,-590.39,0.00019726,2]
[330125894,1719029495209,-793.53,0.00019726,2]
[330125895,1719029495219,-500.0,0.00019726,2]
[330125896,1719029495228,-500.0,0.00019726,2]
[330125897,1719029495238,-500.0,0.00019726,2]
[330125898,1719029495247,-231.01965339,0.00019726,2]
[330125899,1719029495256,-560.45,0.00019726,2]
[330125900,1719029495266,-500.0,0.00019726,2]
[330125901,1719029495276,-500.0,0.00019726,2]
[330125902,1719029495285,-656.09,0.00019726,2]
[330125903,1719029495295,-500.0,0.00019726,2]
[330125904,1719029495304,-429.94495978,0.00019726,2]
[330125905,1719029495313,-500.0,0.00019726,2]
[330125906,1719029495323,-664.77,0.00019726,2]
[330125907,1719029495333,-500.0,0.00019726,2]
[330125908,1719029495342,-500.0,0.00019726,2]
[330125909,1719029495352,-500.0,0.00019726,2]
[330125910,1719029495361,-598.68,0.00019726,2]
[330125911,1719029495371,-769.79,0.00019726,2]
[330125912,1719029495380,-500.0,0.00019726,2]
[330125913,1719029495390,-500.0,0.00019726,2]
[330125914,1719029495399,-500.0,0.00019726,2]
[330125915,1719029495409,-500.0,0.00019726,2]
[330125916,1719029495418,-500.0,0.00019726,2]
[330125917,1719029495427,-500.0,0.00019726,2]
[330125918,1719029495437,-500.0,0.00019726,2]
[330125919,1719029495446,-500.0,0.00019726,2]
[330125920,1719029495457,-500.0,0.00019726,2]
[330125921,1719029495467,-500.0,0.00019726,2]
[330125922,1719029495477,-500.0,0.00019726,2]
[330125923,1719029495487,-500.0,0.00019726,2]
[330125924,1719029495496,-500.0,0.00019726,2]
[330125925,1719029495505,-500.0,0.00019726,2]
[330125926,1719029495515,-500.0,0.00019726,2]
[330125927,1719029495525,-587.52702108,0.00019726,2]
[330125928,1719029495535,-500.0,0.00019726,2]
[330125929,1719029495545,-500.0,0.00019726,2]
[330125930,1719029495554,-795.61,0.00019726,2]
[330125931,1719029495564,-887.81,0.00019726,2]
[330125932,1719029495575,-500.0,0.00019726,2]
[330125933,1719029495584,-500.0,0.00019726,2]
[330125934,1719029495595,-919.19,0.00019726,2]
[330125935,1719029495606,-500.0,0.00019726,2]
[330125936,1719029495616,-500.0,0.00019726,2]
[330125937,1719029495625,-647.03,0.00019726,2]
[330125938,1719029495635,-500.0,0.00019726,2]
[330125939,1719029495645,-500.0,0.00019726,2]
[330125940,1719029495655,-500.0,0.00019726,2]
[330125941,1719029495665,-500.0,0.00019726,2]
[330125942,1719029495674,-532.64549818,0.00019726,2]
[330125943,1719029495683,-500.0,0.00019726,2]
[330125944,1719029495693,-566.57,0.00019726,2]
[330125945,1719029495702,-500.0,0.00019726,2]
[330125946,1719029495711,-316.74638806,0.00019726,2]
[330125947,1719029495721,-500.0,0.00019726,2]
[330125948,1719029495732,-500.0,0.00019726,2]
[330125949,1719029495741,-500.0,0.00019726,2]
[330125950,1719029495751,-500.0,0.00019726,2]
[330125951,1719029495763,-500.0,0.00019726,2]
[330125952,1719029495773,-500.0,0.00019726,2]
[330125953,1719029495784,-500.0,0.00019726,2]
[330125954,1719029495796,-500.0,0.00019726,2]
[330125955,1719029495807,-201.42411701,0.00019726,2]
[330125956,1719029495817,-500.0,0.00019726,2]
[330125957,1719029495827,-500.0,0.00019726,2]
[330125958,1719029495837,-547.67406733,0.00019726,2]
[330125959,1719029495848,-500.0,0.00019726,2]
[330125960,1719029495859,-500.0,0.00019726,2]
[330125961,1719029495870,-500.0,0.00019726,2]
[330125962,1719029495881,-502.1310488,0.00019726,2]
[330125963,1719029495896,-500.0,0.00019726,2]
[330125964,1719029495907,-1116.52,0.00019726,2]
[330125965,1719029495916,-500.0,0.00019726,2]
[330125966,1719029495927,-500.0,0.00019726,2]
[330125967,1719029495938,-500.0,0.00019726,2]
[330125968,1719029495949,-575.71,0.00019726,2]
[330125969,1719029495958,-500.0,0.00019726,2]
[330125970,1719029495967,-500.0,0.00019726,2]
[330125971,1719029495978,-508.07651655,0.00019726,2]
[330125972,1719029495988,-500.0,0.00019726,2]
[330125973,1719029495997,-500.0,0.00019726,2]
[330125974,1719029496008,-578.91,0.00019726,2]
[330125975,1719029496017,-616.21,0.00019726,2]
[330125976,1719029496028,-500.0,0.00019726,2]
[330125977,1719029496038,-500.0,0.00019726,2]
[330125978,1719029496049,-500.0,0.00019726,2]
[330125979,1719029496059,-500.0,0.00019726,2]
[330125980,1719029496070,-666.15,0.00019726,2]
[330125981,1719029496079,-500.0,0.00019726,2]
[330125982,1719029496089,-528.69,0.00019726,2]
[330125983,1719029496100,-500.0,0.00019726,2]
[330125984,1719029496111,-500.0,0.00019726,2]
[330125985,1719029496120,-626.41,0.00019726,2]
[330125986,1719029496130,-1019.4,0.00019726,2]
[330125987,1719029496140,-500.0,0.00019726,2]
[330125988,1719029496150,-500.0,0.00019726,2]
[330125989,1719029496159,-500.0,0.00019726,2]
[330125990,1719029496169,-500.0,0.00019726,2]
[330125991,1719029496179,-518.05,0.00019726,2]
[330125992,1719029496189,-506.16195,0.00019726,2]
[330125993,1719029496199,-500.0,0.00019726,2]
[330125994,1719029496208,-500.0,0.00019726,2]
[330125995,1719029496218,-500.0,0.00019726,2]
[330125996,1719029496227,-500.0,0.00019726,2]
[330125997,1719029496237,-219.44151994,0.00019726,2]
[330125998,1719029496247,-500.0,0.00019726,2]
[330125999,1719029496257,-500.0,0.00019726,2]
[330126000,1719029496266,-500.0,0.00019726,2]
[330126001,1719029496276,-500.0,0.00019726,2]
[330126002,1719029496286,-995.03,0.00019726,2]
[330126003,1719029496298,-500.0,0.00019726,2]
[330126004,1719029496308,-500.0,0.00019726,2]
[330126005,1719029496322,-500.0,0.00019726,2]
[330126006,1719029496331,-329.64657656,0.00019726,2]
[330126007,1719029496342,-648.86172091,0.00019726,2]
[330126008,1719029496351,-500.0,0.00019726,2]
[330126009,1719029496362,-500.0,0.00019726,2]
[330126010,1719029496372,-500.0,0.00019726,2]
[330126011,1719029496384,-500.0,0.00019726,2]
[330126012,1719029496394,-500.0,0.00019726,2]
[330126013,1719029496404,-500.0,0.00019726,2]
[330126014,1719029496415,-574.41,0.00019726,2]
[330126015,1719029496425,-500.0,0.00019726,2]
[330126016,1719029496435,-500.0,0.00019726,2]
[330126017,1719029496446,-500.0,0.00019726,2]
[330126018,1719029496457,-500.0,0.00019726,2]
[330126019,1719029496467,-1025.19,0.00019726,2]
[330126020,1719029496478,-500.0,0.00019726,2]
[330126021,1719029496489,-482.03524535,0.00019726,2]
[330126022,1719029496498,-1126.47,0.00019726,2]
[330126023,1719029496508,-500.0,0.00019726,2]
[330126024,1719029496518,-500.0,0.00019726,2]
[330126025,1719029496528,-500.0,0.00019726,2]
[330126026,1719029496538,-500.0,0.00019726,2]
[330126027,1719029496548,-500.0,0.00019726,2]
[330126028,1719029496558,-500.0,0.00019726,2]
[330126029,1719029496568,-719.4,0.00019726,2]
[330126030,1719029496577,-516.99054785,0.00019726,2]
[330126031,1719029496587,-500.0,0.00019726,2]
[330126032,1719029496597,-500.0,0.00019726,2]
[330126033,1719029496607,-242.48585244,0.00019726,2]
[330126034,1719029496617,-500.0,0.00019726,2]
[330126035,1719029496626,-500.0,0.00019726,2]
[330126036,1719029496637,-286.89470582,0.00019726,2]
[330126037,1719029496647,-500.0,0.00019726,2]
[330126038,1719029496657,-500.0,0.00019726,2]
[330126039,1719029496667,-551.52,0.00019726,2]
[330126040,1719029496676,-500.0,0.00019726,2]
[330126041,1719029496686,-737.91,0.00019726,2]
[330126042,1719029496696,-500.0,0.00019726,2]
[330126043,1719029496705,-1033.53,0.00019726,2]
[330126044,1719029496715,-840.25,0.00019726,2]
[330126045,1719029496725,-500.0,0.00019726,2]
[330126046,1719029496735,-500.0,0.00019726,2]
[330126047,1719029496951,-500.0,0.00019726,2]
[330126048,1719029496968,-500.0,0.00019726,2]
[330126049,1719029496980,-1187.5,0.00019726,2]
[330126050,1719029496992,-801.25,0.00019726,2]
[330126051,1719029497001,-500.0,0.00019726,2]
[330126052,1719029497011,-500.0,0.00019726,2]
[330126053,1719029497022,-551.69,0.00019726,2]
[330126054,1719029497033,-551.12097627,0.00019726,2]
[330126055,1719029497043,-500.0,0.00019726,2]
[330126056,1719029497052,-500.0,0.00019726,2]
[330126057,1719029497061,-436.70549552,0.00019726,2]
[330126058,1719029497071,-500.0,0.00019726,2]
[330126059,1719029497082,-500.0,0.00019726,2]
[330126060,1719029497092,-583.24316646,0.00019726,2]
[330126061,1719029497102,-683.83,0.00019726,2]
[330126062,1719029497114,-500.0,0.00019726,2]
[330126063,1719029497125,-500.0,0.00019726,2]
[330126064,1719029497134,-500.0,0.00019726,2]
[330126065,1719029497144,-545.87,0.00019726,2]
[330126066,1719029497156,-526.92,0.00019726,2]
[330126067,1719029497166,-500.0,0.00019726,2]
[330126068,1719029497175,-500.0,0.00019726,2]
[330126069,1719029497185,-500.0,0.00019726,2]
[330126070,1719029497194,-1228.79,0.00019726,2]
[330126071,1719029497203,-932.1,0.00019726,2]
[330126072,1719029497213,-500.0,0.00019726,2]
[330126073,1719029497222,-500.0,0.00019726,2]
[330126074,1719029497231,-500.0,0.00019726,2]
[330126075,1719029497240,-500.0,0.00019726,2]
[330126076,1719029497250,-500.0,0.00019726,2]
[330126077,1719029497260,-500.0,0.00019726,2]
[330126078,1719029497269,-500.0,0.00019726,2]
[330126079,1719029497278,-500.0,0.00019726,2]
[330126080,1719029497287,-500.0,0.00019726,2]
[330126081,1719029497297,-776.25,0.00019726,2]
[330126082,1719029497306,-500.0,0.00019726,2]
[330126083,1719029497315,-1098.69,0.00019726,2]
[330126084,1719029497325,-500.0,0.00019726,2]